fUSD/lending_fUSD_20260305
["ID","MTS","AMOUNT","RATE_DAILY","PERIOD"]
[407692705,1772682655773,-5000.0,0.00046652,120]
[407692706,1772682655782,-5000.0,0.00046652,120]
[407692707,1772682655791,-5000.0,0.00046652,120]
[407692708,1772682655800,-5000.0,0.00046652,120]
[407692709,1772682655809,-4965.0,0.00046652,120]
[407692710,1772682655818,-200.0,0.00046652,25]
[407692711,1772682655827,-200.0,0.00046652,25]
[407692712,1772682655836,-302.2,0.00046652,25]
[407692713,1772682655845,-200.0,0.00046652,25]
[407692714,1772682655854,-302.2,0.00046652,25]
[407692715,1772682655863,-228.69657264,0.00046652,120]
[407692716,1772682655872,-500.0,0.00046652,120]
[407692717,1772682655881,-4808.0,0.00046652,30]
[407692718,1772682655890,-4808.0,0.00046652,120]
[407692719,1772682655899,-343.0,0.00046652,30]
[407692720,1772682655907,-343.0,0.00046652,120]
[407692721,1772682655917,-55479.76862444,0.00046652,60]
[407692722,1772682667940,10000.01,7.945e-05,2]
[407692723,1772682667963,10000.01,7.945e-05,2]
[407692724,1772682667985,10000.01,7.945e-05,2]
[407692725,1772682668009,10000.01,7.945e-05,2]
[407692726,1772682668031,849.34034,7.945e-05,2]
[407692727,1772682683378,501.0,0.00029877,2]
[407692728,1772682692316,151.0,0.00014634,2]
[407692729,1772682692721,151.0,0.00014634,2]
[407692730,1772682708478,151.0,0.00014634,2]
[407692731,1772682715641,500.0,0.00029877,2]
[407692732,1772682730573,500.0,0.00014373,2]
[407692733,1772682737477,502.7183305,0.00014921,2]
[407692734,1772682739464,200.0,0.0001202,2]
[407692735,1772682739728,200.0,0.0001202,2]
[407692736,1772682740016,200.0,0.0001202,2]
[407692737,1772682740269,200.0,0.0001202,2]
[407692738,1772682740535,200.0,0.0001202,7]
[407692739,1772682786873,500.0,0.00014373,2]
[407692740,1772682786923,502.68587184,0.00014921,2]
[407692741,1772682788262,5540.60579766,0.00032,2]
[407692742,1772682788286,1453.90147372,0.00032,2]
[407692743,1772682789871,504.59959812,0.00014373,2]
[407692744,1772682793552,500.0,0.00014373,2]
[407692745,1772682793614,504.97753483,0.00014921,2]
[407692746,1772682902536,502.37498593,0.00016973,2]
[407692747,1772682902681,184.25917093,0.00016973,2]
[407692748,1772682902957,500.84330545,0.00016973,2]
[407692749,1772682903420,500.96095128,0.00016973,2]
[407692750,1772682905524,500.6048629,0.00016973,2]
[407692751,1772682905599,500.66004421,0.00016973,2]
[407692752,1772682905964,500.68694088,0.00016973,2]
[407692753,1772682906233,516.64695093,0.00016973,2]
[407692754,1772682906554,500.8406382,0.00016973,2]
[407692755,1772682910183,500.82420992,0.00016973,2]
[407692756,1772682910345,571.35562547,0.00016973,2]
[407692757,1772682913055,500.65533715,0.00016973,2]
[407692758,1772682913199,500.30777449,0.00016973,2]
[407692759,1772682913364,516.15323722,0.00016973,2]
[407692760,1772682913581,500.70738406,0.00016973,2]
[407692761,1772682913854,501.34937779,0.00016973,2]
[407692762,1772682913935,209.89151104,0.00016973,2]
[407692763,1772682913984,161.97671235,0.00016973,2]
[407692764,1772682914320,286.53567068,0.00016973,2]
[407692765,1772682914829,500.84612641,0.00016973,2]
[407692766,1772682915470,36.55164788,0.00016973,2]
[407692767,1772682915492,464.27055183,0.00016973,2]
[407692768,1772682916468,163.05497047,0.00016973,2]
[407692769,1772682917079,500.17118036,0.00016973,2]
[407692770,1772682917265,163.59748029,0.00016973,2]
[407692771,1772682917292,513.19025276,0.00016973,2]
[407692772,1772682917363,168.83055657,0.00016973,2]
[407692775,1772682966260,160.23398328,0.00016973,2]
[407692776,1772682966291,161.77269484,0.00016973,2]
[407692777,1772682966877,165.98720503,0.00016973,2]
[407692778,1772682967163,1434.676,0.0001,120]
[407692779,1772682970360,500.83142573,0.00016973,2]
[407692780,1772682970978,501.18552408,0.00016973,2]
[407692781,1772682971005,501.08912633,0.00016973,2]
[407692782,1772682971033,500.6635566,0.00016973,2]
[407692783,1772682972452,167.87481142,0.00016973,2]
[407692784,1772682972767,162.22889393,0.00016973,2]
[407692785,1772682973161,503.13118984,0.00016973,2]
[407692786,1772682973249,500.88173687,0.00016973,2]
[407692787,1772682973352,500.66159153,0.00016973,2]
[407692788,1772682973473,600.66664765,0.00016973,2]
[407692789,1772683027259,158.67517064,0.00016973,2]
[407692790,1772683027562,500.6040409,0.00016973,2]
[407692791,1772683044644,502.00003,0.00029877,2]
[407692792,1772683082672,500.76977486,0.00016973,2]
[407692793,1772683082734,501.07937522,0.00016973,2]
[407692794,1772683082978,501.82148523,0.00016973,2]
[407692795,1772683083691,250.0,0.0001867,2]
[407692796,1772683083731,250.0,0.00027276,2]
[407692797,1772683083760,502.06109406,0.00016973,2]
[407692798,1772683083842,500.76272962,0.00016973,2]
[407692799,1772683083878,501.0364462,0.00016973,2]
[407692800,1772683084567,5000.0,0.0001867,120]
[407692801,1772683086334,195.0,0.00027276,120]
[407692802,1772683116084,546.64,0.000127,2]
[407692803,1772683143122,501.29533568,0.00016973,2]
[407692804,1772683143152,277.91000131,0.00016973,2]
[407692805,1772683143185,500.0,0.00016973,2]
[407692806,1772683203836,500.45511478,0.00016973,2]
[407692807,1772683207033,501.03496978,0.00016973,2]
[407692808,1772683207742,500.8900569,0.00016973,2]
[407692809,1772683211737,250.0,0.00015,2]
[407692810,1772683222404,786.02148944,0.000177,2]
[407692811,1772683240125,150.0,0.00029777,2]
[407692812,1772683251180,234.96910111,0.00029877,2]
[407692813,1772683262973,164.26698433,0.00016973,2]
[407692814,1772683263046,501.37970938,0.00016973,2]
[407692815,1772683263089,501.06673478,0.00016973,2]
[407692816,1772683288912,5909.9258395,0.00017,2]
[407692817,1772683288933,10000.01,0.00017,2]
[407692818,1772683288955,10000.01,0.00017,2]
[407692819,1772683288976,10000.01,0.00017,2]
[407692820,1772683288998,10000.01,0.00017,2]
[407692821,1772683289023,10000.01,0.00017,2]
[407692822,1772683289044,10000.01,0.00017,2]
[407692823,1772683289065,10000.01,0.00017,2]
[407692824,1772683289086,10000.01,0.00017,2]
[407692825,1772683289108,10000.01,0.00017,2]
[407692826,1772683301005,-1123.13906869,0.00017,2]
[407692827,1772683301109,-5000.01,0.00017,2]
[407692828,1772683304317,-5000.01,0.00017,2]
[407692829,1772683304454,-5000.01,0.00017,2]
[407692830,1772683304582,-5000.01,0.00017,2]
[407692831,1772683304685,-5000.01,0.00017,2]
[407692832,1772683304803,-5000.01,0.00017,2]
[407692833,1772683304935,-5000.01,0.00017,2]
[407692834,1772683305032,-5000.01,0.00017,2]
[407692835,1772683305187,-5000.01,0.00017,2]
[407692836,1772683305333,-4941.00886333,0.00017,2]
[407692837,1772683305357,-5000.01,0.00017,2]
[407692838,1772683305443,-10000.01,0.00017,2]
[407692839,1772683305456,-5000.01,0.00017,2]
[407692840,1772683306710,-5000.01,0.00017,2]
[407692841,1772683306885,-5000.01,0.00017,2]
[407692842,1772683306997,-5000.01,0.00017,2]
[407692843,1772683307144,-5000.01,0.00017,2]
[407692844,1772683307237,-5000.01,0.00017,2]
[407692845,1772683307750,-5000.01,0.00017,2]
[407692846,1772683307852,-5000.01,0.00017,2]
[407692847,1772683307957,-5000.01,0.00017,2]
[407692848,1772683308074,-5000.01,0.00017,2]
[407692849,1772683308166,-5000.01,0.00017,2]
[407692850,1772683308216,-10000.01,0.00017,2]
[407692851,1772683308333,-10000.01,0.00017,2]
[407692852,1772683312694,-5000.01,0.00017,2]
[407692853,1772683314566,-10000.01,0.00017,2]
[407692854,1772683315799,-5000.01,0.00017,2]
[407692855,1772683318932,-5000.01,0.00017,2]
[407692856,1772683319162,-5000.01,0.00017,2]
[407692857,1772683319284,-5000.01,0.00017,2]
[407692858,1772683319407,-5000.01,0.00017,2]
[407692859,1772683319526,-5000.01,0.00017,2]
[407692860,1772683319641,-5000.01,0.00017,2]
[407692861,1772683319733,-5000.01,0.00017,2]
[407692862,1772683319836,-5000.01,0.00017,2]
[407692863,1772683319957,-5000.01,0.00017,2]
[407692864,1772683320080,-5000.01,0.00017,2]
[407692865,1772683320627,-10000.01,0.00017,2]
[407692866,1772683324898,-500.72168875,0.00016973,2]
[407692867,1772683324926,-500.67382019,0.00016973,2]
[407692868,1772683324953,-500.93297401,0.00016973,2]
[407692869,1772683324981,-317.56153456,0.00016973,2]
[407692870,1772683325103,161.28550548,0.00016973,2]
[407692871,1772683343079,548.83026,0.00014,2]
[407692872,1772683345531,500.0,0.00012,2]
[407692873,1772683345905,150.1141995,0.00012,2]
[407692874,1772683345927,349.8858005,0.00012,2]
[407692875,1772683345970,822.2836052,0.0001199,2]
[407692876,1772683346331,500.0,0.00012,2]
[407692877,1772683346356,500.0,0.00012,2]
[407692878,1772683346381,503.46804252,0.0001199,2]
[407692879,1772683346570,500.0,0.00012,2]
[407692880,1772683346807,500.0,0.00012,2]
[407692881,1772683347030,500.0,0.00012,2]
[407692882,1772683347323,516.00182669,0.0001199,2]
[407692883,1772683347501,308.37072509,0.0001199,2]
[407692884,1772683347523,197.57008968,0.0001199,2]
[407692885,1772683347551,500.0,0.00012,2]
[407692886,1772683348040,502.81395821,0.0001199,2]
[407692888,1772683356845,157.78,0.0001679,2]
[407692889,1772683363575,150.0,0.00016873,2]
[407692890,1772683371824,-10000.01,0.00017,2]
[407692891,1772683372024,-698.4824186,0.00017,2]
[407692892,1772683372049,-8603.0451628,0.00017,2]
[407692893,1772683380948,-157.79,0.0001706,2]
[407692894,1772683380975,-500.40971782,0.00018,2]
[407692895,1772683381003,-500.0,0.0001867,120]
[407692896,1772683381034,-300.0,0.0001867,120]
[407692897,1772683381062,-2412.11911853,0.0001867,120]
[407692898,1772683381088,-187.71828532,0.0001867,30]
[407692899,1772683381195,-1883.93575666,0.0003013,2]
[407692900,1772683381367,-3335.62489667,0.0003013,2]
[407692901,1772683381646,151.0,0.0003013,2]
[407692902,1772683382491,300.0,0.00018669,2]
[407692903,1772683383312,420.0,0.00020356,2]
[407692904,1772683383637,500.70639793,0.00016973,2]
[407692905,1772683383894,500.47518083,0.00016973,2]
[407692906,1772683384118,242.0,0.00022195,2]
[407692907,1772683384402,500.63657563,0.00016973,2]
[407692908,1772683442896,507.13431696,0.00016973,2]
[407692909,1772683443019,206.80773531,0.00016973,2]
[407692910,1772683443041,293.80939915,0.00016973,2]
[407692911,1772683487256,150.0,0.0003003,2]
[407692912,1772683512992,4217.3045818,0.00017324,2]
[407692913,1772683513040,4217.3045818,0.00019717,2]
[407692914,1772683513094,1121.59143725,0.0002211,2]
[407692915,1772683513117,3095.71314455,0.0002211,2]
[407692916,1772683513288,4217.3045818,0.00024503,2]
[407692917,1772683600068,6409.2171151,0.00017324,2]
[407692919,1772683622759,500.51212371,0.00016973,2]
[407692920,1772683636157,500.0,0.0001367,2]
[407692921,1772683636219,221.59267413,0.0001367,2]
[407692922,1772683636659,500.0,0.0001367,2]
[407692923,1772683636956,503.06401281,0.0001367,2]
[407692924,1772683637118,500.0,0.0001367,2]
[407692925,1772683637141,500.0,0.0001367,2]
[407692926,1772683637613,500.0,0.00012,2]
[407692927,1772683638069,510.04779469,0.00012,2]
[407692928,1772683638923,500.0,0.0001367,2]
[407692929,1772683639766,500.0,0.00012,2]
[407692930,1772683640297,265.30551837,0.00012,2]
[407692931,1772683640327,242.32665595,0.00012,2]
[407692932,1772683645759,500.54096454,0.00012989,2]
[407692933,1772683647091,500.0,0.0001367,2]
[407692934,1772683648670,500.0,0.0001367,2]
[407692935,1772683649138,500.0,0.0001367,2]
[407692936,1772683649690,500.0,0.0001367,2]
[407692937,1772683650197,500.0,0.00012,2]
[407692938,1772683650683,500.0,0.00012,2]
[407692939,1772683651164,500.0,0.00012,2]
[407692940,1772683651667,535.56402291,0.00012,2]
[407692941,1772683666273,-3590.7928849,0.00020119,2]
[407692942,1772683669050,-2818.4242302,0.00020119,2]
[407692943,1772683672343,-5000.0,0.00022131,2]
[407692944,1772683681831,-500.0,0.00022131,2]
[407692945,1772683742700,150.08885952,0.00019178,2]
[407692946,1772683813965,3450.5855702,0.00017553,2]
[407692947,1772683814386,3450.5855702,0.00020014,2]
[407692948,1772683831596,-150.0,0.00022031,2]
[407692950,1772683831606,-347.0,0.00022031,2]
[407692952,1772683831616,-250.0,0.00022472,2]
[407692954,1772683831625,-3450.5855702,0.00022475,2]
[407692956,1772683831635,-6409.2171151,0.00022914,2]
[407692958,1772683831644,-387.48798187,0.00024234,2]
[407692960,1772683831654,-250.0,0.00024234,2]
[407692961,1772683831664,-3450.5855702,0.00024936,2]
[407692962,1772683831674,-275.0,0.00025203,2]
[407692963,1772683831683,-300.0,0.00025203,2]
[407692964,1772683831694,-1200.0,0.00025203,2]
[407692965,1772683831704,-1200.0,0.00025204,2]
[407692966,1772683831713,-300.0,0.00025204,2]
[407692967,1772683831723,-5000.0,0.00025205,2]
[407692968,1772683831733,-186.07234425,0.00025447,2]
[407692969,1772683831742,-6409.2171151,0.00025708,2]
[407692970,1772683831763,-1149.68375102,0.00026453,2]
[407692971,1772683831776,-286.0,0.00027298,2]
[407692972,1772683831786,-1680.0,0.00027421,2]
[407692973,1772683831796,-2351.0,0.00029834,2]
[407692974,1772683831806,-150.72181509,0.0003003,2]
[407692975,1772683831816,-466.0,0.0003125,2]
[407692976,1772683831825,-3292.0,0.00032459,3]
[407692977,1772683831835,-9340.11281032,0.00032877,2]
[407692978,1772683831844,-706.01212084,0.00034026,2]
[407692979,1772683831854,-4609.0,0.00035315,3]
[407692980,1772683831863,-312.0,0.00035612,30]
[407692981,1772683831873,-928.0,0.00035612,30]
[407692982,1772683831882,-3533.86463778,0.00036164,120]
[407692983,1772683831892,-354.58627744,0.00036216,2]
[407692984,1772683831902,-601.55,0.00037071,2]
[407692986,1772683831912,-1006.12,0.00037578,2]
[407692988,1772683831922,-157.4,0.00037592,2]
[407692989,1772683831931,-275.31575721,0.00037592,2]
[407692990,1772683831943,-1324.68424279,0.00037592,2]
[407692991,1772683831953,-1737.0,0.00037592,2]
[407692992,1772683831962,-341.71604564,0.00037608,2]
[407692993,1772683831972,-2557.85199807,0.00038,90]
[407692994,1772683831981,-301.17675416,0.00038,7]
[407692995,1772683831990,-6130.35197613,0.00038202,2]
[407692996,1772683832000,-4761.64857959,0.00038243,10]
[407692997,1772683832012,-2741.12142041,0.00038243,10]
[407692998,1772683832021,-151.0,0.0003825,14]
[407692999,1772683832031,-14307.29,0.00038253,10]
[407693000,1772683832040,-11922.74,0.00038253,10]
[407693001,1772683832050,-19700.20481553,0.00038263,2]
[407693002,1772683832061,-36257.33385616,0.00038263,2]
[407693003,1772683832070,-166.66,0.00038302,30]
[407693004,1772683832080,-6047.0,0.00038423,5]
[407693005,1772683832089,-4435.15600152,0.00038634,2]
[407693006,1772683832098,-1000.0,0.000389,2]
[407693007,1772683832107,-194.39,0.0003909,3]
[407693008,1772683832119,-490.11183171,0.0003909,3]
[407693009,1772683832139,-93.08816829,0.0003909,3]
[407693010,1772683832149,-151.0,0.00039097,14]
[407693011,1772683832160,-962.77528813,0.00039099,120]
[407693012,1772683832170,-508.39784354,0.000391,120]
[407693013,1772683832182,-251.07642546,0.000391,120]
[407693014,1772683837693,-421.70897596,0.00038243,10]
[407693015,1772683837705,-841.41446949,0.00038243,10]
[407693016,1772683837719,-434.15793142,0.00038243,10]
[407693017,1772683837744,-3.42606863,0.00038243,10]
[407693018,1772683837760,-3248.04165607,0.00038243,10]
[407693019,1772683837800,-4986.86089843,0.00038243,10]
[407693020,1772683837811,-8375.93579433,0.000391,120]
[407693021,1772683837820,-9999.99,0.000391,2]
[407693022,1772683837831,-299.99,0.000391,120]
[407693023,1772683837840,-1576.88,0.000391,2]
[407693024,1772683837850,-150.99,0.000391,30]
[407693025,1772683837859,-6023.76,0.000391,2]
[407693026,1772683837869,-9467.83,0.000391,2]
[407693027,1772683837878,-29475.45,0.000391,2]
[407693028,1772683837887,-999.99,0.000391,10]
[407693029,1772683837896,-6736.37,0.000391,2]
[407693030,1772683837906,-150.99,0.000391,2]
[407693031,1772683837915,-9392.1,0.000391,15]
[407693032,1772683837924,-5923.02,0.000391,2]
[407693033,1772683837933,-4999.99,0.000391,30]
[407693034,1772683837943,-166.66,0.00039109,30]
[407693035,1772683837953,-151.0,0.00039129,14]
[407693036,1772683837963,-6130.35197608,0.00039132,2]
[407693037,1772683837972,-3240.0,0.00039478,120]
[407693038,1772683837982,-496.45,0.00039496,30]
[407693039,1772683837992,-228.0,0.00039497,2]
[407693040,1772683838001,-225.0,0.00039564,2]
[407693041,1772683838011,-168.0,0.00039624,2]
[407693042,1772683838020,-225.0,0.00039663,7]
[407693043,1772683838030,-150.0,0.0003981,2]
[407693044,1772683838040,-225.0,0.00039856,2]
[407693045,1772683838050,-315.406239,0.00039902,60]
[407693046,1772683838059,-166.66,0.00039915,30]
[407693048,1772683838068,-225.0,0.00039956,120]
[407693050,1772683838078,-6130.35197608,0.00040063,15]
[407693052,1772683838087,-365.45,0.00040155,2]
[407693054,1772683838096,-500.0,0.00040177,31]
[407693055,1772683838105,-500.0,0.00040177,31]
[407693057,1772683838115,-500.0,0.00040177,31]
[407693059,1772683838125,-500.0,0.00040177,31]
[407693060,1772683838136,-500.0,0.00040177,31]
[407693061,1772683838145,-316.1616948,0.00040177,31]
[407693062,1772683838155,-500.0,0.00040177,31]
[407693063,1772683838164,-500.0,0.00040177,31]
[407693064,1772683838174,-500.0,0.00040177,31]
[407693065,1772683838183,-2000.0,0.00040178,120]
[407693066,1772683838193,-1382.82,0.00040203,120]
[407693067,1772683838203,-180.57,0.00040236,14]
[407693068,1772683838213,-180.58,0.00040236,14]
[407693069,1772683838222,-227.0,0.00040252,2]
[407693070,1772683838231,-168.0,0.00040336,2]
[407693071,1772683838240,-388.78,0.0004046,3]
[407693072,1772683838251,-225.0,0.0004047,7]
[407693073,1772683838261,-601.55,0.00040495,2]
[407693074,1772683838270,-1147.43,0.0004051,2]
[407693075,1772683838279,-1500.0,0.00040591,120]
[407693076,1772683838289,-150.0,0.000406,30]
[407693077,1772683838298,-166.66,0.00040721,30]
[407693078,1772683838308,-6130.35197608,0.00040993,15]
[407693079,1772683838321,-172.70211477,0.00041315,2]
[407693080,1772683838330,-227.0,0.00041318,120]
[407693081,1772683838339,-168.0,0.00041406,2]
[407693082,1772683838349,-170.232,0.00041406,61]
[407693083,1772683838359,-4212.092,0.00041406,61]
[407693084,1772683838368,-168.0,0.00041442,2]
[407693085,1772683838377,-225.0,0.00041449,2]
[407693086,1772683838387,-3500.0,0.00041469,2]
[407693087,1772683838397,-166.66,0.00041528,30]
[407693088,1772683838406,-227.0,0.00041534,2]
[407693089,1772683838416,-623.035,0.00041542,2]
[407693090,1772683838425,-225.0,0.00041601,7]
[407693091,1772683838434,-228.0,0.00041815,7]
[407693092,1772683838443,-225.0,0.00041852,2]
[407693093,1772683838453,-20289.3241,0.00041892,2]
[407693094,1772683838462,-354.0152924,0.000419,15]
[407693095,1772683838471,-154.19015816,0.00041921,14]
[407693096,1772683838480,-4475.58048227,0.00041924,15]
[407693097,1772683838497,-500.0,0.00041924,15]
[407693099,1772683839846,-875.50000001,0.00041924,15]
[407693100,1772683839857,-279.2714938,0.00041924,15]
[407693101,1772683839867,-46.20254284,0.00041957,2]
[407693102,1772683839879,-647.18943346,0.00041957,2]
[407693103,1772683839888,-160.08731038,0.00041974,2]
[407693104,1772683839897,-241.4289713,0.00041974,2]
[407693105,1772683839908,-9822.8847567,0.00041992,2]
[407693106,1772683839922,-522.9232407,0.00041992,2]
[407693107,1772683839933,-2290.38582166,0.00041992,2]
[407693108,1772683839945,-2277.0831524,0.00041992,2]
[407693109,1772683840217,-683.07612854,0.00041992,2]
[407693110,1772683840227,-165.6878943,0.00042,30]
[407693111,1772683840237,-8473.5425,0.00042002,2]
[407693112,1772683840246,-1048.50100127,0.00042004,2]
[407693113,1772683840256,-306.61635286,0.00042004,2]
[407693114,1772683840265,-856.13486002,0.00042004,2]
[407693115,1772683840274,-307.87522791,0.00042004,2]
[407693116,1772683840283,-300.0,0.00042004,2]
[407693117,1772683840294,-459.37693596,0.00042004,2]
[407693118,1772683840303,-372.1160746,0.00042004,2]
[407693119,1772683840317,-300.28645221,0.00042004,2]
[407693120,1772683840328,-519.58908537,0.00042004,2]
[407693121,1772683840339,-306.82968309,0.00042004,2]
[407693122,1772683840348,-532.97683451,0.00042004,2]
[407693123,1772683840359,-300.0,0.00042004,2]
[407693124,1772683840369,-323.68363037,0.00042004,2]
[407693125,1772683840381,-300.0,0.00042004,2]
[407693126,1772683840391,-1084.19175733,0.00042004,2]
[407693127,1772683840401,-300.0,0.00042004,2]
[407693128,1772683840412,-300.0,0.00042004,2]
[407693129,1772683840421,-300.0,0.00042004,2]
[407693130,1772683840430,-300.0,0.00042004,2]
[407693131,1772683840440,-300.0,0.00042004,2]
[407693132,1772683840450,-300.0,0.00042004,2]
[407693133,1772683840462,-300.0,0.00042004,2]
[407693134,1772683840473,-1048.50100127,0.00042004,2]
[407693135,1772683840482,-306.61635286,0.00042004,2]
[407693136,1772683840492,-856.13486002,0.00042004,2]
[407693137,1772683840502,-307.87522791,0.00042004,2]
[407693138,1772683840512,-300.0,0.00042004,2]
[407693139,1772683840523,-459.37693596,0.00042004,2]
[407693140,1772683840532,-372.1160746,0.00042004,2]
[407693141,1772683840542,-300.28645221,0.00042004,2]
[407693142,1772683840552,-519.58908537,0.00042004,2]
[407693143,1772683840564,-306.82968309,0.00042004,2]
[407693144,1772683840577,-300.0,0.00042004,2]
[407693145,1772683840586,-1084.19175733,0.00042004,2]
[407693146,1772683840596,-300.0,0.00042004,2]
[407693147,1772683840606,-719.04747942,0.00042012,2]
[407693148,1772683840806,-745.65223616,0.00042067,2]
[407693149,1772683840817,-773.2413689,0.00042122,2]
[407693150,1772683840827,-500.0,0.00042168,120]
[407693151,1772683840836,-500.0,0.00042168,30]
[407693152,1772683840846,-418.43442844,0.00042168,120]
[407693153,1772683840857,-1000.0,0.00042169,2]
[407693154,1772683840869,-32906.2197,0.00042169,2]
[407693155,1772683840878,-801.85129955,0.00042177,2]
[407693156,1772683840890,-831.51979763,0.00042232,2]
[407693157,1772683840900,-862.28603014,0.00042287,2]
[407693158,1772683840910,-228.0,0.00042311,120]
[407693159,1772683840923,-166.66,0.00042334,30]
[407693160,1772683840932,-894.19061326,0.00042342,2]
[407693161,1772683840941,-927.27566595,0.00042397,2]
[407693162,1772683840951,-225.0,0.00042398,2]
[407693163,1772683840961,-354.01529235,0.0004242,15]
[407693164,1772683840970,-496.45,0.00042432,120]
[407693165,1772683840980,-225.0,0.00042446,120]
[407693166,1772683840989,-961.58486559,0.00042452,2]
[407693167,1772683840999,-168.0,0.00042484,2]
[407693168,1772683841010,-691.40888573,0.000425,120]
[407693169,1772683841019,-997.16350561,0.00042507,2]
[407693170,1772683841029,-1147.43,0.00042536,2]
[407693171,1772683841039,-8944.0,0.00042638,7]
[407693172,1772683841048,-225.0,0.0004267,2]
[407693173,1772683841057,-1349.481,0.0004275,2]
[407693174,1772683841068,-269.85,0.0004275,2]
[407693175,1772683841079,-1328.0,0.0004276,2]
[407693176,1772683841088,-1212.0,0.00042785,2]
[407693177,1772683841099,-925.118,0.00042785,2]
[407693178,1772683841108,-5989.0,0.00042785,2]
[407693179,1772683841122,-2459.0,0.00042785,2]
[407693180,1772683841132,-151.0,0.00042854,120]
[407693181,1772683841143,-219.619846,0.00042854,120]
[407693182,1772683841154,-253.159019,0.00042854,120]
[407693183,1772683841164,-151.0,0.00042854,120]
[407693184,1772683841173,-151.0,0.00042854,120]
[407693185,1772683841183,-151.0,0.00042854,120]
[407693186,1772683841194,-151.0,0.00042854,120]
[407693187,1772683841203,-151.0,0.00042854,120]
[407693188,1772683841213,-151.0,0.00042854,120]
[407693189,1772683841222,-151.0,0.00042854,120]
[407693190,1772683841232,-151.0,0.00042854,120]
[407693191,1772683841241,-151.0,0.00042854,120]
[407693192,1772683841251,-151.0,0.00042854,60]
[407693193,1772683841261,-151.0,0.00042854,7]
[407693194,1772683841271,-151.0,0.00042854,7]
[407693195,1772683841281,-6130.35197608,0.00042854,15]
[407693196,1772683841290,-354.01529235,0.00042939,15]
[407693197,1772683841299,-225.0,0.00043013,2]
[407693198,1772683841313,-248.149808,0.00043063,120]
[407693199,1772683841324,-17344.0,0.00043064,60]
[407693200,1772683841333,-151.0,0.00043064,15]
[407693201,1772683841343,-151.0,0.00043064,15]
[407693202,1772683841352,-151.0,0.00043064,120]
[407693203,1772683841364,-199.513124,0.00043064,15]
[407693204,1772683841373,-151.0,0.00043064,120]
[407693205,1772683841382,-151.0,0.00043064,120]
[407693206,1772683841391,-151.0,0.00043064,120]
[407693207,1772683841403,-177.978194,0.00043064,14]
[407693208,1772683841413,-177.978194,0.00043064,14]
[407693209,1772683841423,-184.568765,0.00043064,120]
[407693210,1772683841432,-177.024468,0.00043064,120]
[407693211,1772683841441,-177.978194,0.00043064,14]
[407693212,1772683841450,-151.0,0.00043064,120]
[407693213,1772683841459,-177.978194,0.00043064,14]
[407693214,1772683841469,-151.0,0.00043064,120]
[407693215,1772683841478,-151.0,0.00043064,120]
[407693216,1772683841487,-151.0,0.00043064,120]
[407693217,1772683841496,-151.0,0.00043064,120]
[407693218,1772683841506,-151.0,0.00043064,120]
[407693219,1772683841515,-151.0,0.00043064,120]
[407693220,1772683841524,-151.0,0.00043064,120]
[407693221,1772683841534,-151.0,0.00043064,120]
[407693222,1772683841543,-151.0,0.00043064,120]
[407693223,1772683841552,-151.0,0.00043064,120]